Cogmind - Beta 16.1 @@@ ROGUE MODE // 2026.02.11 @ 14:02:21 Player: Florist Result: Destroyed by HC-M3O(R) with Subdweller Laser Performance ------------- Evolutions (0) 0 Regions Visited (3) 600 Robots Destroyed (36) 180 Value Destroyed (777) 777 Prototype IDs (0) 0 Alien Tech Used (0) 0 Bonus (62) 62 TOTAL SCORE: 1619 Bonus ------- Follower Combat Kills 127 Friendly Fire -65 Cogmind --------- Core Integrity 0/250 Matter 183/300 Energy 98/100 System Corruption 0% Temperature Cool (6) Movement Rolling (130) Ox2 Location -10/Subcaves Parts ------- > --- POWER (1) -------- (None) > --- PROPULSION (2) --- Subdweller Monowheel > --- UTILITY (2) ------ High-capacity Storage Unit > --- WEAPON (2) ------- Assault Rifle Subdweller Machine Gun > --- INVENTORY (20) --- Light Nuclear Core Light Angular Momentum Engine Flight Unit Flight Unit Flight Unit Flight Unit Small Storage Unit Medium Storage Unit High-capacity Storage Unit Visual Processing Unit Sensor Array Scrap Shield Hacking Suite Hacking Suite Hammer Makeshift Spear Peak State ------------ > --- POWER ------------ Light Nuclear Core > --- PROPULSION ------- Light Treads Subdweller Monowheel > --- UTILITY ---------- High-capacity Storage Unit > --- WEAPON ----------- Assault Rifle Assault Rifle > --- INVENTORY -------- Light Nuclear Core Light Angular Momentum Engine Flight Unit Flight Unit Flight Unit Flight Unit Small Storage Unit Medium Storage Unit High-capacity Storage Unit Visual Processing Unit Sensor Array Scrap Shield Hacking Suite Hacking Suite Grenade Launcher Hammer Makeshift Spear [Rating: 12] Favorites ----------- Power Light Nuclear Core Engine Ion Engine Power Core Light Nuclear Core Propulsion Light Treads Treads Light Treads Wheel Subdweller Monowheel Utility Seismic Detector Device Seismic Detector Storage Medium Storage Unit Weapon Assault Rifle Ballistic Gun Assault Rifle Launcher Grenade Launcher Impact Weapon Hammer Build | -11 -10 -10 -10 ------- Run | Yrd Mat Min Sub Slots Evolved . | . . . . Power . | . . . . Propulsion . | . . . . Utility . | . . . . Weapon . | . . . . Parts Attached 21 | 7 8 4 2 Power 2 | 1 1 . . Engine 1 | 1 . . . Core 1 | . 1 . . Reactor . | . . . . Propulsion 4 | 2 . 1 1 Treads 3 | 2 . 1 . Leg . | . . . . Wheel 1 | . . . 1 Hover . | . . . . Flight . | . . . . Utility 6 | 2 3 1 . Device 2 | 1 1 . . Storage 4 | 1 2 1 . Processor . | . . . . Hackware . | . . . . Protection . | . . . . Artifact . | . . . . Weapon 9 | 2 4 2 1 Energy Gun . | . . . . Energy Cannon . | . . . . Ballistic Gun 6 | 2 3 . 1 Ballistic Cannon . | . . . . Launcher 2 | . 1 1 . Special Weapon . | . . . . Impact Weapon 1 | . . 1 . Slashing Weapon . | . . . . Piercing Weapon . | . . . . Special Melee Weapon . | . . . . Unidentified Prototypes . | . . . . Parts Lost 9 | . 2 2 5 Power 2 | . 1 . 1 Propulsion 3 | . . 1 2 Utility 1 | . . 1 . Weapon 3 | . 1 . 2 Highest Loss Streak 4 | . 2 2 4 To Critical Strikes . | . . . . Average Backups 10 | 2 9 12 16 Power 1 | . . 1 2 Propulsion 2 | 1 2 3 4 Utility 4 | . 3 5 7 Weapon 2 | . 2 2 2 Tool/Special . | . . . . Unused Backups 23 | . 9 . 14 Power 3 | . 1 . 2 Propulsion 6 | . 2 . 4 Utility 11 | . 4 . 7 Weapon 3 | . 2 . 1 Tool/Special . | . . . . Average Slot Usage (%) 92 | . 96 91 81 Engine 3 | . 7 . . Core 8 | . 3 14 13 Treads 27 | . 28 28 24 Device 9 | . 14 5 . Storage 14 | . 14 14 14 Ballistic Gun 27 | . 27 26 26 Peak Build Rating 12 | 7 10 11 12 Average Rating 8 | 5 8 10 10 On Entrance 7 | . 7 10 11 Avg Prop Armor Cover (%) 12 | . . . 12 Naked Turns . | . . . . Heaviest Build 50 | 13 20 50 50 Greatest Support 40 | 40 40 40 40 Greatest Overweight (x) 2 | 1 . 1 2 Average Overweight (x) . | . . . 1 Largest Inventory Capacity 20 | 8 10 20 20 Average Capacity 13 | 7 9 17 20 Most Carried 18 | 4 10 16 18 Average Carried 10 | 2 9 12 17 Final Capacity 20 | 8 10 20 20 Final Carried 17 | 4 10 16 17 Class Distribution -------------------- 100% | Mutant Dominant Class ---------------- Mutant | -10/Materials Mutant | -10/Mines Mutant | -10/Subcaves Resources | -11 -10 -10 -10 ----------- Run | Yrd Mat Min Sub Matter Collected 1019 | 173 413 320 113 Remotely . | . . . . Salvage Created 1196 | 37 680 339 140 Parts 78 | 8 46 19 5 Haulers Intercepted 2 | . 2 . . Recyclers Shooed 3 | . 2 1 . Parts Field Recycled . | . . . . Retrieved Matter . | . . . . Parts Self-Destructed 5 | . . . 5 Prevented . | . . . . Parts Restored . | . . . . Kills | -11 -10 -10 -10 ------- Run | Yrd Mat Min Sub Combat Hostiles Destroyed 26 | . 12 13 1 Guns 17 | . 10 6 1 AOE 9 | . 2 7 . Classes Destroyed 9 | 1 6 1 1 Tunneler 4 | 3 1 . . Hauler 2 | . 2 . . Recycler 2 | . 1 1 . Operator 2 | . 2 . . Watcher 2 | . 2 . . Swarmer 8 | . 3 5 . Grunt 15 | . 9 6 . Subdweller 1 | . . . 1 Assembled 2 | . . 2 . Best Kill Streak 4 | 2 4 4 1 Combat Bots Only 4 | . 3 4 1 Max Kills in Single Turn 2 | 1 1 2 1 Gunslinging . | . . . . Exploded 2 | . 1 2 . Melee . | . . . . Uniques/NPCs Destroyed . | . . . . Combat | -11 -10 -10 -10 -------- Run | Yrd Mat Min Sub Hostile Shots Fired 119 | . 64 39 16 Missed 39 | . 21 15 3 Hits 80 | . 43 24 13 Melee 1 | . . 1 . Projectile 79 | . 43 23 13 AOE 2 | . . . 2 Critical Strikes 5 | . 4 1 . Damage Taken 1290 | . 560 363 367 Core 257 | . 114 79 64 Absorbed by Shields . | . . . . Core Remaining (%) 100 | 100 . . . Volleys Fired 126 | 10 70 26 20 Largest 2 | 2 2 2 2 Hottest 50 | 40 50 50 50 Shots Fired 243 | 20 140 46 37 Gun 230 | 20 138 37 35 Cannon . | . . . . Launcher 13 | . 2 9 2 Special . | . . . . Kinetic 230 | 20 138 37 35 Thermal . | . . . . Explosive 13 | . 2 9 2 Electromagnetic . | . . . . Robot Hit Streak 23 | 6 13 10 23 Robot Miss Streak 4 | 1 4 3 2 Penetration Max . | . . . . Secondary Targets 2 | . 1 1 . Max Gunslinging Chain 1 | . 1 1 . Shots Hit Robots 160 | 13 88 30 29 Core Hits 74 | 3 38 23 10 Critical Kills 1 | . . 1 . Critical Parts Destroyed . | . . . . Critical Strikes 1 | . . 1 . Destroy 1 | . . 1 . Melee Attacks 4 | . . 4 . Impact 4 | . . 4 . Slashing . | . . . . Piercing . | . . . . Sneak Attacks . | . . . . Combat Hostiles . | . . . . Follow-up Attacks . | . . . . Damage Inflicted 2728 | 116 1039 1018 555 Guns 1781 | 116 964 318 383 Cannons . | . . . . Explosions 944 | . 72 700 172 Melee . | . . . . Ramming 3 | . 3 . . Kinetic 1781 | 116 964 318 383 Thermal . | . . . . Explosive 944 | . 72 700 172 Electromagnetic . | . . . . Impact . | . . . . Slashing . | . . . . Piercing . | . . . . Highest Corruption . | . . . . Average Corruption . | . . . . Corruption Purged . | . . . . Corruption Blocked . | . . . . Overload Shots . | . . . . Overflow Damage 77 | . . 55 22 Projectiles . | . . . . Explosions 77 | . . 55 22 Melee . | . . . . Knockbacks . | . . . . Impact . | . . . . Kinetic . | . . . . Secondary . | . . . . Self-Inflicted Damage 115 | . . 91 24 Shots 4 | . . 3 1 Rammed 2 | . 2 . . Targets Rammed 2 | . 2 . . Kicked . | . . . . Crushed . | . . . . Highest Temperature 36 | . 36 17 . Average Temperature 9 | . 12 4 . Received Heat Transfer 482 | . 324 116 42 Siege Activations . | . . . . Martial Activations . | . . . . Shielding Activations . | . . . . Robots Disrupted . | . . . . Combat Hostiles . | . . . . Robots Corrupted . | . . . . Combat Hostiles . | . . . . Parts Fried . | . . . . Impact Corruptions . | . . . . Robots Melted . | . . . . Combat Hostiles . | . . . . Parts Melted . | . . . . Heat Transferred . | . . . . Parts Sabotaged . | . . . . Parts Stolen . | . . . . Parts Stripped . | . . . . Power Chain Reactions . | . . . . Alert | -11 -10 -10 -10 ------- Run | Yrd Mat Min Sub Maximum Alert Level . | . . . . Low Security (%) 100 | 100 100 100 . Level 1 . | . . . . Level 2 . | . . . . Level 3 . | . . . . Level 4 . | . . . . Level 5 . | . . . . High Security . | . . . . Max Security . | . . . . Peak Influence 158 | 10 135 158 . Initial . | . . . . Average 44 | 1 36 63 . Influence Increases 887 | 15 421 451 . Destroy 0b10 Robot/C 560 | . 240 320 . Destroy 0b10 Robot/NC 65 | 15 40 10 . Destroy Leader 108 | . 68 40 . Allied During Kill 27 | . . 27 . Successful Hack 19 | . 19 . . Destroy Structure 48 | . 9 39 . Lose Combat Pursuer 60 | . 45 15 . Influence Decreases 887 | 15 421 352 99 Entered New Map 52 | . . . 52 Time Decay 775 | 15 401 312 47 Lost Part 40 | . 20 20 . Lost Ally 20 | . . 20 . Squads Dispatched 3 | . 2 1 . Investigation . | . . . . Extermination . | . . . . Reinforcement 2 | . 2 . . Assault 1 | . . 1 . Garrison . | . . . . Intercept . | . . . . Searches Triggered . | . . . . Construction Impeded . | . . . . Haulers Reinforced . | . . . . Active Scanning Responses . | . . . . Cargo Convoy Interrupts . | . . . . Stealth | -11 -10 -10 -10 --------- Run | Yrd Mat Min Sub Distress Signals 2 | . 2 . . Communications Jammed . | . . . . Distress Signals . | . . . . Times Spotted 43 | . 23 17 3 Peak Tracking Total 4 | . 4 3 2 Tactical Retreats 4 | . 2 2 . Traps | -11 -10 -10 -10 ------- Run | Yrd Mat Min Sub Traps Triggered 1 | . 1 . . Indirectly . | . . . . Trap Hack Attempts . | . . . . Triggered . | . . . . Disarmed . | . . . . Reprogrammed . | . . . . Reused . | . . . . Traps Extracted . | . . . . Installed . | . . . . Triggered . | . . . . Machines | -11 -10 -10 -10 ---------- Run | Yrd Mat Min Sub Machines Disabled . | . . . . Max in Single Turn . | . . . . Machines Repaired . | . . . . Machines Dismantled . | . . . . Machines Sabotaged . | . . . . Overloaded Fab Kills . | . . . . Hacking | -11 -10 -10 -10 --------- Run | Yrd Mat Min Sub Machines Accessed 5 | . 5 . . Terminals 5 | . 5 . . Fabricators . | . . . . Repair Stations . | . . . . Recycling Units . | . . . . Scanalyzers . | . . . . Garrison Access . | . . . . Total Hacks 18 | . 18 . . Successful 12 | . 12 . . Failed 6 | . 6 . . Catastrophic 1 | . 1 . . Database Lockouts . | . . . . Manual 18 | . 18 . . Terminals 18 | . 18 . . Fabricators . | . . . . Repair Stations . | . . . . Recycling Units . | . . . . Scanalyzers . | . . . . Garrison Access . | . . . . Terminal Hacks 2 | . 2 . . Robot Analysis 2 | . 2 . . Fabricator Hacks . | . . . . Repair Station Hacks . | . . . . Recycling Unit Hacks . | . . . . Scanalyzer . | . . . . Garrison Access Hacks . | . . . . Unauthorized Hacks 9 | . 9 . . Terminals 9 | . 9 . . Botnet 5 | . 5 . . Skim 4 | . 4 . . Fabricators . | . . . . Repair Stations . | . . . . Recycling Units . | . . . . Scanalyzers . | . . . . Garrison Access . | . . . . Data Cores Recovered . | . . . . Used . | . . . . Hacking Detections 4 | . 4 . . Full Trace Events . | . . . . Feedback Events . | . . . . Feedback Blocked . | . . . . Robot Schematics Acquired . | . . . . Robots Built . | . . . . Authchips . | . . . . Time . | . . . . Total Robot Build Rating . | . . . . Part Schematics Acquired . | . . . . Parts Built . | . . . . Authchips . | . . . . Time . | . . . . Total Part Build Rating . | . . . . Part Studies Acquired . | . . . . Parts Repaired . | . . . . Time . | . . . . Parts Recycled . | . . . . Recycled Matter . | . . . . Retrieved Matter . | . . . . Retrieved Components . | . . . . Parts Scanalyzed . | . . . . Part Schematics Acquired . | . . . . Parts Damaged . | . . . . Bothacking | -11 -10 -10 -10 ------------ Run | Yrd Mat Min Sub Used RIF Installer . | . . . . Robots Hacked . | . . . . Non-combat . | . . . . Combat . | . . . . Robot Hacks Applied . | . . . . Relay Couplers Released . | . . . . Fabnet Peak Effective % . | . . . . Robots Rewired . | . . . . Allies Hacked . | . . . . Hacks Repelled . | . . . . Allies | -11 -10 -10 -10 -------- Run | Yrd Mat Min Sub Total Allies 3 | . . 3 . Largest Group 2 | . . 2 1 Highest-Rated Group 42 | . . 42 31 Highest-Rated Ally 31 | . . 31 31 Total Orders . | . . . . Ally Attacks 22 | . . 20 2 Total Damage 317 | . . 275 42 Kills 6 | . . 6 . Allies Corrupted . | . . . . Allies Melted . | . . . . Intel | -11 -10 -10 -10 ------- Run | Yrd Mat Min Sub Active Infowar (turns) 2272 | 14 1818 440 . Seismic 2272 | 14 1818 440 . Robot Analysis Total 2 | . 2 . . Derelict Logs Recovered 1 | . . 1 . Drone Launches . | . . . . Drone Recoveries . | . . . . Exploration | -11 -10 -10 -10 ------------- Run | Yrd Mat Min Sub Turns Passed 3393 | 129 1819 1086 359 Spaces Moved 1553 | 60 942 436 115 Core 7 | 7 . . . Treads 1532 | 53 942 436 101 Legs . | . . . . Wheels 14 | . . . 14 Hover . | . . . . Flight . | . . . . Fastest Speed 50 | 50 160 160 130 Average Speed 178 | 149 160 208 231 Slowest Speed 320 | 160 160 240 320 Overloaded Moves . | . . . . Propulsion Burnouts . | . . . . Robots Hopped . | . . . . Potential Cave-ins . | . . . . Cave-ins Triggered . | . . . . Exploration Rate (%) 47 | 3 96 81 8 Regions Visited 3 Branch Regions 2 Pre-discovered Areas 1 | . . . 1 Known Exits Taken . | . . . . Unknown Exits Taken 3 | 1 1 1 . Scrap Searched 2 | . . 2 . Spaces Dug 4 | . . . 4 Terrain Destroyed 67 | . 10 49 8 Melee . | . . . . Projectile . | . . . . AOE 67 | . 10 49 8 Terrain Rammed . | . . . . Walls Destroyed . | . . . . Machines Disabled . | . . . . Actions | -11 -10 -10 -10 --------- Run | Yrd Mat Min Sub Total 1935 | 80 1132 555 168 Wait 168 | . 71 72 25 Move 1550 | 59 941 435 115 Hop . | . . . . Pick Up 33 | 4 21 7 1 Fast Attach 11 | 7 2 . 2 Attach 5 | . 3 1 1 Detach . | . . . . Swap 18 | . 5 9 4 Drop 18 | . 17 1 . Fire 126 | 10 70 26 20 Melee 4 | . . 4 . Ram . | . . . . Kick . | . . . . Crush 2 | . 2 . . Escape Stasis . | . . . . Rewire . | . . . . Trap . | . . . . Miscellaneous . | . . . . Route ------- -11/Scrapyard -10/Materials (discovered 5 exits: [*Mat x3] / [*Min x2]) -10/Mines (discovered 3 exits: [*Mat x2] / [*Sub]) -10/Subcaves History --------- Turn | Location | Event 23 | -11/Scrapyard | Discovered new exit (range 15) 130 | -11/Scrapyard | Entered Materials 309 | -10/Materials | Build established: Mutant 422 | -10/Materials | Discovered new exit (range 11) 802 | -10/Materials | Discovered new exit (range 9) 1044 | -10/Materials | Discovered new exit (range 9) 1226 | -10/Materials | Discovered new exit (range 4) 1360 | -10/Materials | Discovered new exit (range 7) 1949 | -10/Materials | Entered Mines 2063 | -10/Mines | Discovered new exit (range 3) 2154 | -10/Mines | Learned Materials stockpile data 2220 | -10/Mines | Discovered new exit (range 12) 2382 | -10/Mines | Excavation squad dispatched 2382 | -10/Mines | A large section of the Mines collapsed 2390 | -10/Mines | Core integrity fell below 50% 2619 | -10/Mines | A weapon hastily lodged in a ceiling crevice suddenly fell to the ground 2841 | -10/Mines | Found DCF Scrap (13 items) 2933 | -10/Mines | Met a Derelict testing a Signal Generator 3023 | -10/Mines | Discovered new exit (range 6) 3035 | -10/Mines | Entered Subcaves 3035 | -10/Subcaves | Accompanied by 1 ally 3036 | -10/Subcaves | Approached by a straggling Scientist 3179 | -10/Subcaves | Learned location of Zion (-6) 3179 | -10/Subcaves | Met a Zionite searching for "candidates" 3385 | -10/Subcaves | Core integrity fell below 20% 3394 | -10/Subcaves | Destroyed by HC-M3O(R) with Subdweller Laser Last Messages --------------- you could die at any moment. For your health and safety might I suggest a trip to Zion?" World map updated: -6/Zion. WM-530(c): "I think it's somewhere west of here" 03315_ 9N-18B(R) knocked back. 03318_ 9N-18B(R) destroyed. 03318_ Lgt. Treads destroyed. 03340_ Acquired Sub. Monowheel. WM-530(c): "I think it's somewhere west of here" 03351_ WQ-SD0(h) destroyed. 03366_ WM-530(c) destroyed. 03375_ Lgt. Nuclear Core destroyed. 03378_ Grenade Launcher destroyed. 03378_ Destroyed Grenade Launcher. 03378_ Assault Rifle destroyed. 03378_ Destroyed Assault Rifle. 03382_ Lgt. Treads destroyed. 03386_ UF-JQS(R) destroyed. 03388_ Acquired 61 matter. 03390_ Acquired Sub. Machine Gun. Map ----- +----------------------------------------------------+ | ???????# #??????????????????????????????????????? | | ???????## ###????????????????????????????????????? | | ????????# ##???????????????????????????????????? | | ????????# ##??????????????????????????????????? | | ????????# #??????????????????????????????????? | | ????????#### ##??????????????????????????????????? | | ?????????### ##?????????????????????????????????? | | ?????????# #?????????????????????????????????? | | ?????????# ######?????????????????????????????? | | ?????????# ### ######????????????????????????? | | ?????????# # ####?????????????????????? | | ?????????# # #?????????????????????? | | ?????????## ### #?????????????????????? | | ??????????### #?## # #?????????????????????? | | ???????????? #??####### ##?? ??????????????????? | | ???????????## ???????## #??? ?????????????????? | | ???????????? #??????## #??? ?????????????????? | | ????????????###??##### ##?? ##????????????????? | | ?????????? ##???#; ;## ?????????????????? | | ???????????" ?##; # ###???????????????? | | ????????? " """ #; ;# ;#???????????????? | | ???????? "" ;#^ #????????????????? | | ??????????### "" % # #????????????????? | | ???????????# " # #????????????????? | | ???????????##" ?# #????????????????? | | ???????????#" ??# @!%# ##???????????????? | | ???????????#????# & # #???????????????? | | ????????????????# *R #???????????????? | | ???????????# ## % #???????????????? | | ???????????# ##### ## ^ #???????????????? | | ?????????? ## #????#### ^ ?????????? | | ?????????? #???????? #?????? | | ??????????### ????????? ### ??????? | | ????????????# ???????? ### #???????????? | | ???????????? ????????# ##??? #??????????? | | ???????????? #?????????## #?????###??????????? | | ???????????? ???????????## #??????????????????? | | ????????????????????????????? ??????????????????? | | ?????????????????????????????# ??????????????????? | | ??????????????????????????????#??????????????????? | | ?????????????????????????????????????????????????? | | ?????????????????????????????????????????????????? | | ?????????????????????????????????????????????????? | | ?????????????????????????????????????????????????? | | ?????????????????????????????????????????????????? | | ?????????????????????????????????????????????????? | | ?????????????????????????????????????????????????? | | ?????????????????????????????????????????????????? | | ?????????????????????????????????????????????????? | | ?????????????????????????????????????????????????? | +----------------------------------------------------+ Best States ------------- Heat Dissipation 25 Energy Generation 14 Energy Capacity 250 Matter Stores 300 Matter Capacity 300 Sight Range 16 Terrain Scan Density 10 Evasion (%) 40 Recoil Reduction 2 Item Schematics ----------------- None Robot Schematics ------------------ None Fabricated ------------ Nothing Repaired ---------- Nothing Studied --------- None Alien Tech Used ----------------- None Achievements -------------- None Challenges ------------ None Game ------ Seed LightHellfireCharge Manual? 0 Play Time 00:18:13 Cumulative 265.5 hours Start 2026.02.11 @ 13:46:08 End 2026.02.11 @ 14:02:21 Sessions 1 Manual Loads 0 Difficulty Rogue Special Mode None Game No. 223 Rogue 223 Adventurer 0 Explorer 0 Win Type - Total 15 Types 7/0/6/2/0/0/0/0/0/0 Lore% 81 Gallery% 71 Achievement% 49 Wizard Run 0 Options --------- Layout 1 ASCII 0 Keyboard 0 Movement Numpad Keybinds 0 Fullscreen 1 Font 32/SmallcapsGlow Map View 77x35 Zoom Use 0% Tactical HUD 1 Map Filters NONE Filters NONE Steam 1 RUN: b145f0f8-c3a2-4946-ad86-ce8c74fa9247